Cogmind - Beta 13 @@@ ROGUE MODE // 2024.05.01 @ 14:46:12 Player: BrainTooSmol Result: Destroyed by D-53 Grenadier with Mini Grenade Launcher Performance ------------- Evolutions (0) 0 Regions Visited (2) 400 Robots Destroyed (5) 25 Value Destroyed (135) 135 Prototype IDs (0) 0 Alien Tech Used (0) 0 Bonus (0) 0 TOTAL SCORE: 560 Bonus ------- None Cogmind --------- Core Integrity 0/250 Matter 262/300 Energy 70/100 System Corruption 0% Temperature Cool (0) Movement Treading (320) Ox2 Location -10/Mines Parts ------- > --- POWER (1) -------- (None) > --- PROPULSION (2) --- Light Treads > --- UTILITY (2) ------ High-capacity Storage Unit Seismic Detector > --- WEAPON (2) ------- Great Maul > --- INVENTORY (20) --- Deuterium Engine Light Nuclear Core Light Treads Light Treads Aluminum Leg Aluminum Leg Improved Sensor Array Hardened Medium Armor Plating Improved Trap Extractor (0/6) Light Assault Rifle Light Cannon Assault Cannon Grenade Launcher Peak State ------------ > --- POWER ------------ Ion Engine > --- PROPULSION ------- Wheel Compact Wheel > --- UTILITY ---------- High-capacity Storage Unit Seismic Detector > --- WEAPON ----------- Medium Laser Rocket Launcher > --- INVENTORY -------- Deuterium Engine Light Nuclear Core Light Treads Light Treads Light Treads Aluminum Leg Aluminum Leg Improved Sensor Array Hardened Medium Armor Plating Improved Trap Extractor Light Assault Rifle Light Cannon Assault Cannon Grenade Launcher Great Maul [Rating: 11] Favorites ----------- Power Ion Engine Engine Ion Engine Propulsion Aluminum Leg Leg Aluminum Leg Wheel Wheel Utility Seismic Detector Device Seismic Detector Storage High-capacity Storage Unit Weapon Medium Laser Energy Gun Medium Laser Ballistic Cannon Light Cannon Launcher Rocket Launcher Impact Weapon Great Maul Build | -11 -10 -10 ------- Run | Yrd Mat Min Slots Evolved . | . . . Power . | . . . Propulsion . | . . . Utility . | . . . Weapon . | . . . Parts Attached 9 | . 6 3 Power . | . . . Engine . | . . . Core . | . . . Reactor . | . . . Propulsion 3 | . 2 1 Treads 1 | . . 1 Leg . | . . . Wheel 2 | . 2 . Hover . | . . . Flight . | . . . Utility 3 | . 3 . Device 2 | . 2 . Storage 1 | . 1 . Processor . | . . . Hackware . | . . . Protection . | . . . Artifact . | . . . Weapon 3 | . 1 2 Energy Gun . | . . . Energy Cannon . | . . . Ballistic Gun . | . . . Ballistic Cannon 1 | . 1 . Launcher 1 | . . 1 Special Weapon . | . . . Impact Weapon 1 | . . 1 Slashing Weapon . | . . . Piercing Weapon . | . . . Special Melee Weapon . | . . . Unidentified Prototypes . | . . . Parts Lost 5 | . . 5 Power 1 | . . 1 Propulsion 2 | . . 2 Utility . | . . . Weapon 2 | . . 2 Highest Loss Streak 5 | . . 5 To Critical Strikes . | . . . Average Slot Usage (%) 98 | . 97 98 Engine 13 | . 14 13 Leg 13 | . 24 . Wheel 14 | . 3 27 Device 12 | . 11 14 Storage 14 | . 14 14 Energy Gun 15 | . 17 13 Ballistic Cannon 11 | . 9 13 Naked Turns . | . . . Heaviest Build 51 | 14 51 51 Greatest Support 26 | 20 26 26 Greatest Overweight (x) 1 | . 1 1 Average Overweight (x) . | . . 1 Largest Inventory Capacity 20 | . 20 20 Average Capacity 14 | . 9 20 Most Carried 15 | . 8 15 Average Carried 10 | . 7 13 Final Capacity 20 | 8 20 20 Final Carried 13 | 6 8 13 Class Distribution -------------------- 100% | Mutant Dominant Class ---------------- Mutant | -10/Materials Mutant | -10/Mines Resources | -11 -10 -10 ----------- Run | Yrd Mat Min Matter Collected 316 | 200 76 40 Remotely . | . . . Salvage Created 177 | . 88 89 Parts 6 | . 5 1 Haulers Intercepted . | . . . Recyclers Shooed . | . . . Parts Field Recycled . | . . . Retrieved Matter . | . . . Parts Self-Destructed . | . . . Prevented . | . . . Kills | -11 -10 -10 ------- Run | Yrd Mat Min Combat Hostiles Destroyed 14 | . 4 10 Guns 2 | . 2 . Cannons 2 | . 2 . AOE 10 | . . 10 Classes Destroyed 3 | . 2 1 Swarmer 2 | . 2 . Grunt 3 | . 2 1 Assembled 9 | . . 9 Best Kill Streak 10 | . 1 10 Combat Bots Only 10 | . 1 10 Max Kills in Single Turn 4 | . 1 4 Gunslinging . | . . . Exploded 4 | . . 4 Melee . | . . . Uniques/NPCs Destroyed . | . . . Combat | -11 -10 -10 -------- Run | Yrd Mat Min Hostile Shots Fired 57 | . 21 36 Missed 11 | . 3 8 Damage Taken 688 | . 167 521 Core 250 | . 51 199 Absorbed by Shields . | . . . Core Remaining (%) 100 | 100 . . Volleys Fired 17 | . 14 3 Largest 2 | . 2 2 Hottest 85 | . 85 83 Shots Fired 34 | . 28 6 Gun 17 | . 14 3 Cannon 14 | . 14 . Launcher 3 | . . 3 Special . | . . . Kinetic 14 | . 14 . Thermal 17 | . 14 3 Explosive 3 | . . 3 Electromagnetic . | . . . Robot Hit Streak 9 | . 9 2 Robot Miss Streak 2 | . 2 1 Penetration Max . | . . . Secondary Targets . | . . . Shots Hit Robots 23 | . 19 4 Core Hits 26 | . 5 21 Critical Kills . | . . . Critical Parts Destroyed . | . . . Critical Strikes 1 | . 1 . Burn 1 | . 1 . Melee Attacks 1 | . . 1 Impact 1 | . . 1 Slashing . | . . . Piercing . | . . . Sneak Attacks . | . . . Combat Hostiles . | . . . Follow-up Attacks . | . . . Damage Inflicted 957 | . 308 649 Guns 163 | . 127 36 Cannons 181 | . 181 . Explosions 613 | . . 613 Melee . | . . . Ramming . | . . . Kinetic 181 | . 181 . Thermal 163 | . 127 36 Explosive 613 | . . 613 Electromagnetic . | . . . Impact . | . . . Slashing . | . . . Piercing . | . . . Highest Corruption . | . . . Average Corruption . | . . . Corruption Purged . | . . . Corruption Blocked . | . . . Overload Shots . | . . . Overflow Damage . | . . . Projectiles . | . . . Explosions . | . . . Melee . | . . . Knockbacks 6 | . 6 . Impact . | . . . Kinetic 6 | . 6 . Secondary . | . . . Self-Inflicted Damage 46 | . . 46 Shots 1 | . . 1 Rammed . | . . . Targets Rammed . | . . . Kicked . | . . . Crushed . | . . . Highest Temperature 230 | . 230 66 Average Temperature 86 | . 95 40 Received Heat Transfer 118 | . 54 64 Siege Activations . | . . . Robots Corrupted . | . . . Combat Hostiles . | . . . Parts Fried . | . . . Impact Corruptions . | . . . Robots Melted . | . . . Combat Hostiles . | . . . Parts Melted . | . . . Heat Transferred 555 | . 444 111 Parts Sabotaged . | . . . Parts Stolen . | . . . Parts Stripped . | . . . Power Chain Reactions . | . . . Alert | -11 -10 -10 ------- Run | Yrd Mat Min Peak Influence 147 | . 147 40 Initial . | . . . Average 31 | . 59 . Maximum Alert Level . | . . . Low Security (%) 100 | . 100 100 Level 1 . | . . . Level 2 . | . . . Level 3 . | . . . Level 4 . | . . . Level 5 . | . . . High Security . | . . . Max Security . | . . . Squads Dispatched . | . . . Investigation . | . . . Extermination . | . . . Reinforcement . | . . . Assault . | . . . Garrison . | . . . Intercept . | . . . Searches Triggered . | . . . Construction Impeded . | . . . Haulers Reinforced . | . . . Active Scanning Responses . | . . . Cargo Convoy Interrupts . | . . . Stealth | -11 -10 -10 --------- Run | Yrd Mat Min Distress Signals . | . . . Communications Jammed . | . . . Distress Signals . | . . . Times Spotted 27 | . 8 19 Peak Tracking Total 17 | . 4 17 Tactical Retreats 1 | . 1 . Traps | -11 -10 -10 ------- Run | Yrd Mat Min Traps Triggered . | . . . Indirectly . | . . . Trap Hack Attempts . | . . . Triggered . | . . . Disarmed . | . . . Reprogrammed . | . . . Reused . | . . . Traps Extracted . | . . . Installed . | . . . Triggered . | . . . Machines | -11 -10 -10 ---------- Run | Yrd Mat Min Machines Disabled . | . . . Max in Single Turn . | . . . Machines Repaired . | . . . Machines Dismantled . | . . . Machines Sabotaged . | . . . Overloaded Fab Kills . | . . . Hacking | -11 -10 -10 --------- Run | Yrd Mat Min Machines Accessed 5 | . 4 1 Terminals 3 | . 3 . Fabricators . | . . . Repair Stations . | . . . Recycling Units 1 | . 1 . Scanalyzers . | . . . Garrison Access . | . . . Total Hacks 13 | . 12 1 Successful 8 | . 7 1 Failed 5 | . 5 . Catastrophic . | . . . Database Lockouts . | . . . Manual 5 | . 5 . Terminals 8 | . 8 . Fabricators . | . . . Repair Stations . | . . . Recycling Units 4 | . 4 . Scanalyzers . | . . . Garrison Access . | . . . Terminal Hacks 3 | . 2 1 Open Door 1 | . . 1 Locate Traps 1 | . 1 . Hauler Manifests 1 | . 1 . Fabricator Hacks . | . . . Repair Station Hacks . | . . . Recycling Unit Hacks 1 | . 1 . Retrieve Components 1 | . 1 . Scanalyzer . | . . . Garrison Access Hacks . | . . . Unauthorized Hacks 4 | . 4 . Terminals 2 | . 2 . Botnet 1 | . 1 . Operators 1 | . 1 . Fabricators . | . . . Repair Stations . | . . . Recycling Units 2 | . 2 . Reject 1 | . 1 . Mask 1 | . 1 . Scanalyzers . | . . . Garrison Access . | . . . Data Cores Recovered . | . . . Used . | . . . Hacking Detections 3 | . 3 . Full Trace Events . | . . . Feedback Events . | . . . Feedback Blocked . | . . . Robot Schematics Acquired . | . . . Robots Built . | . . . Authchips . | . . . Time . | . . . Total Robot Build Rating . | . . . Part Schematics Acquired . | . . . Parts Built . | . . . Authchips . | . . . Time . | . . . Total Part Build Rating . | . . . Parts Repaired . | . . . Time . | . . . Parts Recycled . | . . . Recycled Matter . | . . . Retrieved Matter . | . . . Retrieved Components 3 | . 3 . Parts Scanalyzed . | . . . Part Schematics Acquired . | . . . Parts Damaged . | . . . Bothacking | -11 -10 -10 ------------ Run | Yrd Mat Min Used RIF Installer . | . . . Robots Hacked . | . . . Non-combat . | . . . Combat . | . . . Robot Hacks Applied . | . . . Relay Couplers Released . | . . . Fabnet Peak Effective % . | . . . Robots Rewired . | . . . Allies Hacked . | . . . Hacks Repelled . | . . . Allies | -11 -10 -10 -------- Run | Yrd Mat Min Total Allies . | . . . Largest Group . | . . . Highest-Rated Group . | . . . Highest-Rated Ally . | . . . Total Orders . | . . . Ally Attacks . | . . . Total Damage . | . . . Kills . | . . . Allies Corrupted . | . . . Allies Melted . | . . . Intel | -11 -10 -10 ------- Run | Yrd Mat Min Robot Analysis Total . | . . . Derelict Logs Recovered . | . . . Drone Launches . | . . . Drone Recoveries . | . . . Exploration | -11 -10 -10 ------------- Run | Yrd Mat Min Turns Passed 782 | . 414 368 Spaces Moved 576 | 1 271 304 Core . | . . . Treads . | . . . Legs 234 | 1 233 . Wheels 342 | . 38 304 Hover . | . . . Flight . | . . . Fastest Speed 95 | 120 95 105 Average Speed 111 | 120 117 105 Slowest Speed 120 | 120 120 105 Overloaded Moves . | . . . Propulsion Burnouts . | . . . Robots Hopped . | . . . Cave-ins Triggered . | . . . Exploration Rate (%) 33 | 1 40 59 Regions Visited 2 Branch Regions 1 Pre-discovered Areas 1 | . . 1 Known Exits Taken . | . . . Unknown Exits Taken 2 | 1 1 . Scrap Searched 2 | . . 2 Spaces Dug 1 | . . 1 Terrain Destroyed 31 | . . 31 Melee 1 | . . 1 Projectile . | . . . AOE 30 | . . 30 Terrain Rammed . | . . . Walls Destroyed . | . . . Machines Disabled . | . . . Actions | -11 -10 -10 --------- Run | Yrd Mat Min Total 681 | . 336 345 Wait 66 | . 41 25 Move 574 | . 270 304 Hop . | . . . Pick Up 10 | . 2 8 Fast Attach 3 | . 3 . Attach 2 | . . 2 Detach . | . . . Swap 4 | . 3 1 Drop 4 | . 3 1 Fire 17 | . 14 3 Melee 1 | . . 1 Ram . | . . . Kick . | . . . Crush . | . . . Escape Stasis . | . . . Rewire . | . . . Trap . | . . . Miscellaneous . | . . . Route ------- -11/Scrapyard -10/Materials -10/Mines (discovered 2 exits: [*Mat x2]) History --------- Turn | Location | Event 1 | -11/Scrapyard | Discovered new exit (range 0) 1 | -11/Scrapyard | Entered Materials 298 | -10/Materials | Discovered new exit (range 15) 312 | -10/Materials | Build established: Mutant 415 | -10/Materials | Entered Mines 442 | -10/Mines | Met a Derelict who couldn't figure out how to use a Trap Extractor 502 | -10/Mines | Discovered new exit (range 6) 559 | -10/Mines | Discovered new exit (range 10) 605 | -10/Mines | Learned location of Storage (-9) 707 | -10/Mines | Received a Rocket Launcher from a helpful Derelict 758 | -10/Mines | Assembled infested the area 773 | -10/Mines | Core integrity fell below 50% 782 | -10/Mines | Core integrity fell below 20% 783 | -10/Mines | Destroyed by D-53 Grenadier with Mini Grenade Launcher Last Messages --------------- 00766_ K-01 Serf destroyed. 00770_ as-77869 destroyed. 00770_ as-66411 destroyed. 00770_ as-64643 destroyed. 00771_ Wheel destroyed. 00772_ Ion Engine destroyed. 00772_ Com. Wheel destroyed. 00773_ as-77521 destroyed. 00773_ as-79528 destroyed. 00775_ The unstable cave ceiling collapses. 00776_ as-51188 destroyed. 00776_ as-52618 destroyed. 00776_ as-12870 destroyed. 00776_ as-26035 destroyed. 00776_ Knocked back. 00777_ Med. Laser destroyed. 00777_ G-34 Mercenary destroyed. 00781_ as-85275 destroyed. 00782_ as-45402 destroyed. 00783_ Rocket Launcher destroyed. Map ----- +----------------------------------------------------+ | ?????????????????????????????????????????????????? | | ?????????????????????????????????????????????????? | | ????????????????????????????????????#####????????? | | ???????????????????????????????????## #####????? | | ????????????????????????????????#### #????? | | ???????????????????????????????## #????? | | ???????????????????????????????# #?????? | | ???????????????????????????????# ##????## | | ???????????????????????????????# ## ##???### | | ???????????????????????????????## #### #???## | | ????????????????????????????????#%#??# #???# | | ????????????????????????????????# #### ###### | | ????????????????????????????????# | | ????????????????????????????????# | | ????????????????????????????????############### | | ??????????????????????????????????????????????## | | ???????????????????????????????????????????????## | | ????????????????????????????????????????????????# | | ????????????????????????????????????????????????# | | ????????????????????????????????????????????????# | | ?????????????????????????????????????????######## | | ?????????????????????????????????????????# | | ????????????????????########?????????????# ####### | | ????????????????????# #?????????????# #?????? | | ????????????# ??????# #?????????????# #?????? | | ???????????## ?????# @ #???########### #?????? | | ???????????? ????## #???# #?????? | | ?????????????? ??# #???# ######### #?????? | | ????????? $ ?? ?# d ???# #?????## ##????? | | ????????????# = d #??# #?????# #????? | | ?????????????# ==% ##?# #?????# #????? | | ??????????????# % ### #?????# #????? | | ??????????????# %= #?????# ##???? | | ??????????????## # *## #?????## #???? | | ???????????????### % ### #??????## #???? | | ?????????????????# ##?# #??????## ##### | | ????????????????? = #??# #?????## | | ???????????????? =% #??# #?????# < | | ???????????????? ! ######??#%#????# ##### | | ??????????????? ##???????#=#???# ###???# | | ?????????????? ?????????# #???# #??????# | | ???????????? #????????## ##### #???????# | | ??????????? #####????????## #???????# | | ???????????? #????????????## #???????# | | ???????????? ????????????## ### ##???????# | | ???????????????????????????# #?###?????????# | | ??????????????????????????## ##?????????????# | | ????????????????????????### ##??????????????# | | ???????????????????????## #???????????????# | | ???????????????????????# ##???????????#### | +----------------------------------------------------+ Best States ------------- Heat Dissipation 25 Energy Generation 10 Energy Capacity 250 Matter Stores 300 Matter Capacity 300 Sight Range 16 Terrain Scan Range 14 Terrain Scan Density 10 Evasion (%) 55 Item Schematics ----------------- None Robot Schematics ------------------ None Fabricated ------------ Nothing Alien Tech Used ----------------- None Achievements -------------- None Challenges ------------ None Game ------ Seed BombardmentLegImmobilizer Manual? 0 Play Time 00:07:12 Cumulative 68.3 hours Start 2024.05.01 @ 14:39:06 End 2024.05.01 @ 14:46:12 Sessions 1 Manual Loads 0 Difficulty Rogue Special Mode None Game No. 46 Rogue 46 Adventurer 0 Explorer 0 Win Type - Total 1 Types 1/0/0/0/0/0/0/0/0 Lore% 51 Gallery% 41 Achievement% 39 Wizard Run 0 Options --------- Layout 0 ASCII 0 Keyboard 0 Movement Mouse Keybinds 0 Fullscreen 1 Font 18/SmallcapsGlow Map View 76x50 Zoom Use 0% Tactical HUD 1 Map Filters NONE Filters NONE Steam 1 RUN: 04cd662d-6892-4a75-a94a-61554b269da2